[Event "European Women-ch 2023"]
[Site "Petrovac"]
[Date "2023.03.27"]
[Round "9.14"]
[White "Sieber, Fiona"]
[Black "Milliet, Sophie"]
[Result "1-0"]
[ECO "B67"]
[WhiteElo "2217"]
[BlackElo "2404"]
[Annotator "TA"]
[PlyCount "113"]
[EventDate "2023.03.15"]
[EventType "swiss"]
[EventCountry "MNE"]
[SourceTitle "playchess.com"]
[Source "ChessBase"]
[SourceQuality "1"]
[TimeControl "40/5400+30:1800+30"]

{[%evp 18,113,37,25,32,37,28,12,7,5,24,8,76,-2,-8,-26,-19,-14,0,-16,0,-54,9,0,0,-14,0,0,0,0,0,0,0,0,0,0,0,0,137,128,318,326,547,370,396,389,374,363,386,408,515,521,489,506,677,671,991,973,983,941,925,912,962,947,922,907,879,855,974,958,1520,1515,1456,1486,1444,1275,1500,1454,1227,1387,1237,1141,12841,12841,12841,12842,12842,12843,12843,12843,12846,12847,12847,12844,12845,12844,12845,12844]} 1. e4 {[%emt 0:00:01]} c5 {[%emt 0:00:05]} 2. Nf3 {[%emt 0:00:04]} Nc6 {[%emt 0:00:05]} 3. d4 {[%emt 0:00:10]} cxd4 {[%emt 0:00:04]} 4. Nxd4 {[%emt 0:00:04]} Nf6 {[%emt 0:00:05]} 5. Nc3 {[%emt 0:00:04]} d6 {[%emt 0:00:04]} 6. Bg5 {[%emt 0:00:57]} e6 {[%emt 0:00:10]} 7. Qd2 {[%emt 0:00:48]} a6 {[%emt 0:00:13]} 8. O-O-O {[%emt 0:02:21]} Bd7 {[%emt 0:00:21]} 9. f3 {[%emt 0:05:33]} Nxd4 {[%emt 0:00:32]} 10. Qxd4 {[%emt 0:00:02]} Be7 {[%emt 0:00:40] B67: Sicilian: Richter-Rauzer: 7...a6 8 0-0-0 Bd7, lines without 9 f4 Be7.} 11. Kb1 {[%emt 0:02:29]} Qc7 {[%emt 0:01:42]} 12. h4 {[%emt 0:01:57]} (12. a3 {simplifies} b5 13. g4 Rb8 14. Bxf6 Bxf6 15. Qxd6 Qxd6 16. Rxd6 a5 17. h4) 12... b5 {[%emt 0:07:21] The position is equal.} 13. g4 {[%emt 0:02:00]} O-O {[%emt 0:13:02]} 14. h5 {[%emt 0:14:54] Threatening h6.} (14. Bxf6 {simplifies} Bxf6 15. Qxd6 Qxd6 16. Rxd6 Rfd8 17. Rd3) 14... b4 {[%emt 0:27:12]} 15. Ne2 {[%emt 0:05:09]} (15. Qxb4 $16 {aiming for h6.} h6 16. Bd2) 15... Rfc8 $11 {[%emt 0:01:15]} 16. Rc1 {[%emt 0:05:13] Active counter play!} e5 {[%emt 0:09:14]} 17. Qd2 {[%emt 0:05:09] [#]} Be6 $146 {[%emt 0:12:38]} ({Predecessor:} 17... a5 18. Be3 Be6 19. g5 Nd7 20. g6 a4 21. Bh3 Bc4 22. gxf7+ Bxf7 23. Ng3 Qb7 24. Nf5 Bf8 25. Rhg1 Kh8 26. Nxd6 Bxd6 27. Qxd6 Rc7 28. h6 Ra6 29. Qe7 {1-0 Melkumyan,H (2645)-Crevatin,L (2312) Titled Tuesday intern op 27th Sep Late blitz 2022 (2)}) 18. c4 {[%emt 0:04:25]} (18. Bh4 {is more complex.} a5 19. h6 g6 20. Ng3) 18... bxc3 {[%emt 0:06:11]} (18... Bxc4 19. Bxf6 (19. Qxb4 d5 $17) (19. b3 Nxe4 20. fxe4 Bxg5 $16) 19... Bxf6 20. b3 $16 (20. Qxb4 $2 Bd3+ 21. Ka1 Qxc1+ {[%mdl 64] Back Rank} 22. Nxc1 Rxc1#)) (18... h6 $5 {[%cal Rf6e4]} 19. Be3 a5 $11) 19. Nxc3 {[%emt 0:01:13]} ({White should try} 19. Rxc3 $11 Qb7 20. Bxf6 Bxf6 21. g5) 19... Qb7 {[%emt 0:03:29]} (19... Qa5 $1 $15 20. a4 (20. h6 $2 Rxc3 21. b3 Rxc1+ 22. Kxc1 Qa3+ 23. Kb1 d5 $19) 20... h6) 20. Bxf6 {[%emt 0:02:17]} (20. h6 {keeps more tension.} Rxc3 21. Rxc3 Nxe4 22. fxe4 Qxe4+ 23. Qd3) 20... Bxf6 {[%emt 0:00:01]} 21. g5 {[%emt 0:00:06]} Bd8 {[%emt 0:00:43]} 22. Bh3 {[%emt 0:02:14]} Rab8 {[%emt 0:00:32]} 23. Bxe6 {[%emt 0:04:02]} (23. Rc2 {seems wilder.} Bxh3 24. Rxh3 Bxg5 25. Qxg5 Rxc3 26. Rg2) 23... fxe6 {[%emt 0:00:01]} 24. Na4 {[%emt 0:07:22]} d5 {[%emt 0:03:59]} 25. Rxc8 {[%emt 0:05:28]} Rxc8 {[%emt 0:00:00]} 26. Rc1 {[%emt 0:00:43]} Rb8 {[%emt 0:04:08]} 27. g6 {[%emt 0:07:30]} Qb5 {[%emt 0:06:57] [#]} (27... dxe4 $11 28. Qd6 Bg5) 28. Qc2 $1 $16 {[%emt 0:03:47]} d4 $2 {[%emt 0:00:24] Loses the game.} (28... dxe4 $16 29. Nc3 (29. fxe4 hxg6 30. hxg6 Qe8 $16) (29. Qxe4 Bg5 $14) 29... Qe8) 29. Qc6 $18 {[%emt 0:04:21]} Kh8 $2 {[%emt 0:01:41]} (29... Qxc6 {keeps fighting.} 30. Rxc6 hxg6) 30. Qxb5 {[%emt 0:04:06][%mdl 64] Remove Defender} axb5 {[%emt 0:00:01][%mdl 4096] Endgame KRB-KRN} 31. Nc5 {[%emt 0:00:07]} Bg5 {[%emt 0:00:18]} 32. Rc2 {[%emt 0:04:11]} Rd8 {[%emt 0:00:51] [#] Strongly threatening ...d3.} 33. Nd3 {[%emt 0:00:38]} (33. Nxe6 d3 $18) 33... Kg8 {[%emt 0:01:11]} 34. Rc5 {[%emt 0:00:40] White is clearly winning.} (34. Nxe5 d3 35. Nxd3 (35. gxh7+ $2 Kxh7 36. Rc1 Bf4 $19) 35... Rxd3 36. Rc8+ Rd8 37. Rxd8+ Bxd8 $19) 34... hxg6 {[%emt 0:00:19]} 35. hxg6 {[%emt 0:00:05]} ({Weaker is} 35. Rxe5 Bf6 36. Rxb5 gxh5 $18) 35... Bf4 {[%emt 0:01:01]} 36. Rxb5 {[%emt 0:01:03]} Rf8 {[%emt 0:00:15]} 37. a4 {[%emt 0:00:50][%cal Ba2a4,Ba4a5,Ba5a6][%mdl 32]} Ra8 {[%emt 0:00:49]} 38. a5 {[%emt 0:00:24]} Kf8 {[%emt 0:00:03]} 39. b4 {[%emt 0:01:12]} Ke7 {[%emt 0:00:04]} 40. Rb6 {[%emt 0:00:00]} Kf6 {[%emt 0:00:00]} 41. a6 {[%emt 0:01:49]} Kxg6 {[%emt 0:07:10]} 42. b5 {[%emt 0:00:10]} Bg5 {[%emt 0:00:34]} 43. Rxe6+ {[%emt 0:04:01]} Bf6 {[%emt 0:00:11]} 44. b6 {[%emt 0:01:51] Hoping for a7.} Rxa6 {[%emt 0:01:02]} 45. b7 {[%emt 0:00:20]} Rxe6 {[%emt 0:00:06]} 46. b8=Q {[%emt 0:00:06]} ({Not} 46. b8=R Kg5 47. Rh8 Rc6 $17) 46... Re7 {[%emt 0:03:24]} 47. Kc2 {[%emt 0:00:36]} Kh7 {[%emt 0:00:40]} 48. Qc8 {[%emt 0:00:37]} g6 {[%emt 0:04:12]} 49. Nb4 {[%emt 0:00:35]} Bg7 {[%emt 0:00:17]} 50. Nc6 {[%emt 0:03:10]} Rf7 {[%emt 0:00:06]} 51. Qh3+ {[%emt 0:00:06]} Kg8 {[%emt 0:00:05]} 52. Qe6 {[%emt 0:00:05][%cal Oc6d8] White threatens Nd8! and mate.} Bf6 {[%emt 0:00:12] Prevents Nd8.} 53. Qe8+ {[%emt 0:01:05]} Rf8 {[%emt 0:05:56]} 54. Qxg6+ {[%emt 0:00:08]} Kh8 {[%emt 0:00:01]} 55. Qh5+ {[%emt 0:01:41]} Kg8 {[%emt 0:00:09]} 56. Nxe5 {[%emt 0:00:16]} Bg7 {[%emt 0:00:39]} 57. Kd3 {[%emt 0:01:35] Weighted Error Value: White=0.19 (very precise) /Black=0.55} 1-0

[Event "European Women-ch 2023"]
[Site "Petrovac"]
[Date "2023.03.27"]
[Round "9.14"]
[White "Kubicka, Anna"]
[Black "Krasteva, Beloslava"]
[Result "0-1"]
[ECO "B40"]
[WhiteElo "2211"]
[BlackElo "2292"]
[Annotator "TA"]
[PlyCount "129"]
[EventDate "2023.03.15"]
[EventType "swiss"]
[EventCountry "MNE"]
[SourceTitle "playchess.com"]
[Source "ChessBase"]
[SourceQuality "1"]
[TimeControl "40/5400+30:1800+30"]

{[%evp 9,129,-45,-47,-37,-31,-39,-32,-30,-47,-45,-40,-63,-44,-61,-18,-66,19,0,29,33,34,14,33,39,26,35,0,0,25,0,106,87,107,85,66,18,18,14,25,-81,-47,-162,0,0,0,0,0,0,0,-61,60,12,27,-71,60,24,23,0,0,-10,0,-9,29,0,0,0,8,-15,0,-26,-3,0,0,-109,-93,-100,-113,-204,-209,-313,-177,-241,-191,-191,-178,-231,-202,-534,-496,-3381,-2956,-29975,-1562,-1368,-1216,-1511,-1348,-29972,-29973,-29972,-29974,-29974,-29975,-29975,-29976,-29976,-29977,-29977,-29978,-29978,-29979,-29979,-29979,-29980,-29980,-29980,-29981,-29982,-29982,-29986,-29987,-29987]} 1. e4 {[%emt 0:00:06]} c5 {[%emt 0:00:12]} 2. Nf3 {[%emt 0:00:09]} e6 {[%emt 0:00:22]} 3. g3 {[%emt 0:00:32]} Nc6 {[%emt 0:00:43]} 4. Bg2 {[%emt 0:00:07]} Nf6 {[%emt 0:00:38]} 5. e5 {[%emt 0:00:27]} Ng4 {[%emt 0:02:09]} 6. O-O {[%emt 0:01:23] B40: Sicilian: 2...e6, Unusual lines.} Ngxe5 {[%emt 0:02:05]} 7. Nxe5 {[%emt 0:01:49]} Nxe5 {[%emt 0:00:06]} 8. d4 {[%emt 0:01:05] Black is slightly better.} cxd4 {[%emt 0:01:30]} 9. Qxd4 {[%emt 0:18:17]} Nc6 {[%emt 0:02:02]} 10. Qg4 {[%emt 0:04:23]} h5 {[%emt 0:07:19]} 11. Qe2 {[%emt 0:00:34]} h4 {[%emt 0:02:17]} 12. Nc3 {[%emt 0:03:22] [#]} (12. Rd1 $11) 12... b6 $146 {[%emt 0:05:12]} (12... hxg3 $15 13. fxg3 Be7) ({Predecessor:} 12... Be7 13. Bf4 g5 14. Be3 Qa5 15. Rad1 d5 16. Bd2 Qa6 17. Nb5 Qb6 18. Bc3 Rg8 {0-1 Dionysopoulos,Z (1871)-Stamatiou,R (1853) GRE-ch Online Blitz op 1st 2021 (16)}) 13. Bf4 $11 {[%emt 0:04:07][%mdl 1024] White has compensation.} Bb7 {[%emt 0:01:57]} 14. Nb5 {[%emt 0:13:39]} Rc8 {[%emt 0:06:30] Inhibits Nc7+.} 15. Rfd1 {[%emt 0:07:04]} Ba6 {[%emt 0:10:30]} 16. c4 {[%emt 0:07:18]} Bc5 {[%emt 0:08:48]} 17. Nd6+ {[%emt 0:18:18]} Bxd6 {[%emt 0:00:47]} 18. Bxd6 {[%emt 0:00:04]} Qf6 {[%emt 0:06:31]} 19. b3 {[%emt 0:02:00]} Nd4 {[%emt 0:07:25]} (19... hxg3 $11 20. fxg3 Bb7) 20. Qd3 $1 $16 {[%emt 0:03:11]} Nf5 {[%emt 0:00:19]} 21. Ba3 {[%emt 0:05:19][%csl Gd1][%cal Rd3d7] A strong pair of Bishops.} Rd8 {[%emt 0:04:11]} (21... d5 $2 22. Bxd5 exd5 23. Qxd5 $18) 22. Rab1 {[%emt 0:01:32]} (22. g4 $14 h3 23. Be4 (23. Bxh3 Nh4 $17)) 22... hxg3 $11 {[%emt 0:01:47]} 23. hxg3 {[%emt 0:00:08]} d5 {[%emt 0:04:47]} 24. Qf3 {[%emt 0:03:15]} (24. Qd2 $11 {remains equal.}) 24... Qh6 $17 {[%emt 0:05:42] And now ...b5 would win.} (24... dxc4 $2 {leads to mate.} 25. Qc6+) 25. Qc3 {[%emt 0:02:30]} (25. Qe2 $15) 25... Nd6 $2 {[%emt 0:02:26]} ({Black should play} 25... f6 $19 26. Qb4 Qh2+ 27. Kf1 Kf7) 26. Bxd6 $11 {[%emt 0:00:50]} Rxd6 {[%emt 0:00:02]} 27. Qb4 {[%emt 0:00:24]} Rd7 {[%emt 0:03:32]} 28. Qa3 {[%emt 0:00:23]} Bc8 {[%emt 0:02:20] ...d4 is the strong threat.} 29. cxd5 {[%emt 0:00:35]} (29. Rd4 $1 $11 Qh2+ 30. Kf1) 29... exd5 {[%emt 0:01:28]} ({Better is} 29... Bb7 $15 30. Rbc1 a5) 30. Rbc1 {[%emt 0:01:56]} (30. Rxd5 $14 Rxd5 31. Re1+ Be6 32. Bxd5) 30... Kd8 $1 {[%emt 0:01:15]} 31. Rd4 {[%emt 0:00:33]} ({Don't play} 31. Kf1 a5 32. f4 d4 $17) (31. b4 $11) 31... Qd6 {[%emt 0:05:36]} (31... Qh2+ $1 $17 32. Kf1 a5 33. Rxc8+ Kxc8) 32. Qb2 {[%emt 0:00:28]} ({Much weaker is} 32. Qxd6 Rxd6 33. Rxd5 Rxd5 34. Bxd5 f6 $11) 32... Bb7 {[%emt 0:00:53]} 33. Rg4 {[%emt 0:00:29]} f6 {[%emt 0:00:38]} 34. Qd4 {[%emt 0:00:18]} Qe5 {[%emt 0:01:36]} 35. Qa4 {[%emt 0:00:06]} a5 {[%emt 0:01:22]} 36. Rh4 {[%emt 0:00:25]} (36. b4 $5 {[%cal Rb4a5]}) 36... Re8 {[%emt 0:02:17]} 37. Qb5 {[%emt 0:00:13]} Qd6 {[%emt 0:00:35]} 38. Rd4 {[%emt 0:00:11]} Re5 {[%emt 0:00:37]} 39. Rcd1 {[%emt 0:01:13]} Qc6 {[%emt 0:00:51]} 40. Qd3 {[%emt 0:00:00]} Qe6 {[%emt 0:00:00]} 41. Qb5 {[%emt 0:09:52] [#]} (41. Qb1 $11) 41... Re1+ $1 $17 {[%emt 0:08:04] Black converts the advantage convincingly.} 42. Rxe1 {[%emt 0:00:20]} Qxe1+ {[%emt 0:00:02]} 43. Kh2 {[%emt 0:05:22]} (43. Bf1 $17 {is a better defense.}) 43... Kc7 $19 {[%emt 0:01:53]} (43... Qxf2 $2 44. Qxb6+ Kc8 45. Rc4+ dxc4 46. Qxf2 $18) 44. Rf4 {[%emt 0:04:24]} (44. Qf1 {was the only defense.} Qxf1 45. Bxf1) 44... Qc3 {[%emt 0:08:28]} (44... Rd8 $142 {White must now prevent ...Rh8+.} 45. Qa4 Rh8+ 46. Rh4 Rxh4+ 47. gxh4 Qxf2) 45. Rh4 {[%emt 0:08:08]} (45. Qe2 {was worth a try.} g5 46. Rf3 Rh7+ 47. Kg1 Qc1+ 48. Qf1 Qxf1+ {[%mdl 64] Remove Defender} 49. Kxf1) 45... Qc5 {[%emt 0:01:40]} 46. Qe2 {[%emt 0:00:55] [#]} d4 $1 {[%emt 0:01:48][%cal Bd5d4,Bd4d3][%mdl 32] Threatens to win with ...g5.} 47. Bxb7 {[%emt 0:00:16]} (47. Qd3 $142) 47... Kxb7 {[%emt 0:01:23][%mdl 4096] Endgame KQR-KQR} 48. Rh8 $2 {[%emt 0:00:10]} (48. Qd3 {is tougher.}) 48... d3 {[%emt 0:05:44]} 49. Qf3+ {[%emt 0:00:40]} (49. Qe8 $142 Qxf2+ 50. Kh1 Qf1+ 51. Kh2 Qe2+ 52. Qxe2 {[%mdl 64] Remove Defender} dxe2 53. Re8) 49... Qd5 {[%emt 0:01:18] Active counter play!} 50. Qf4 {[%emt 0:02:58]} Rd8 {[%emt 0:01:47]} (50... d2 $142 51. Qb8+ Ka6 52. Qc8+ Qb7 53. Qxb7+ {[%mdl 64] Remove Defender} Kxb7 54. Kg2 d1=Q 55. b4 Qd5+ 56. f3 Qe6 57. Rd8 Qe2+ 58. Kh3 Rxd8 59. Kg4 Qe6+ 60. Kh5 Qf5+ 61. Kh4 Rh8#) 51. Rxd8 {[%emt 0:01:18]} Qxd8 {[%emt 0:00:02] KQ-KQ} 52. Qd2 {[%emt 0:00:10]} Qd5 {[%emt 0:00:44] ( -> ...Qh5+)} 53. f4 {[%emt 0:03:08]} Qf3 {[%emt 0:01:30] Black mates.} 54. Kg1 {[%emt 0:00:32]} Qxg3+ {[%emt 0:00:08]} 55. Kf1 {[%emt 0:00:03]} Qf3+ {[%emt 0:01:09]} 56. Ke1 {[%emt 0:00:26] [#]} g5 $1 {[%emt 0:01:00]} 57. fxg5 {[%emt 0:00:15]} fxg5 {[%emt 0:00:05]} 58. Qh2 {[%emt 0:00:26] [#]} Qe2+ $1 {[%emt 0:02:01]} 59. Qxe2 {[%emt 0:00:04]} dxe2 {[%emt 0:00:03]} 60. Kxe2 {[%emt 0:00:03] K3P-KPP} Kc6 {[%emt 0:00:12]} 61. Ke3 {[%emt 0:01:24]} Kc5 {[%emt 0:00:07]} 62. a3 {[%emt 0:00:07]} b5 {[%emt 0:00:27]} 63. Ke4 {[%emt 0:00:40]} b4 {[%emt 0:01:14]} 64. axb4+ {[%emt 0:00:52]} Kxb4 {[%emt 0:00:21]} 65. Kd4 {[%emt 0:00:09] Weighted Error Value: White=0.54/Black=0.29 (precise)} 0-1

[Event "European Women-ch 2023"]
[Site "Petrovac"]
[Date "2023.03.27"]
[Round "9.14"]
[White "Skvortsova, Alena"]
[Black "Silva, Ana Ines Teixeira Da"]
[Result "1-0"]
[ECO "C45"]
[WhiteElo "2032"]
[BlackElo "1792"]
[Annotator "TA"]
[PlyCount "77"]
[EventDate "2023.03.15"]
[EventType "swiss"]
[EventCountry "MNE"]
[SourceTitle "playchess.com"]
[Source "ChessBase"]
[SourceQuality "1"]
[TimeControl "40/5400+30:1800+30"]

{[%evp 17,77,0,0,-10,101,108,112,105,121,48,102,108,142,83,143,89,134,123,120,130,147,140,258,256,260,208,312,316,354,284,287,269,260,250,255,252,254,202,200,168,254,217,203,179,4998,229,227,220,5397,413,431,412,410,422,422,388,29990,29991,29991,29970,29994,29995]} 1. e4 {[%emt 0:00:04]} e5 {[%emt 0:00:06]} 2. Nf3 {[%emt 0:00:10]} Nc6 {[%emt 0:00:14]} 3. d4 {[%emt 0:00:16]} exd4 {[%emt 0:00:21]} 4. Nxd4 {[%emt 0:00:08]} Nf6 {[%emt 0:00:51]} 5. Nxc6 {[%emt 0:00:23]} bxc6 {[%emt 0:00:14]} 6. e5 {[%emt 0:00:12]} Qe7 {[%emt 0:00:38]} 7. Qe2 {[%emt 0:00:06]} Nd5 {[%emt 0:00:19]} 8. c4 {[%emt 0:00:17]} Ba6 {[%emt 0:02:39]} 9. b3 {[%emt 0:00:23]} g6 {[%emt 0:07:56]} 10. f4 {[%emt 0:01:57] The old main line. C45: Scotch Game.} Bh6 {[%emt 0:10:59]} (10... d6 $11 {keeps the balance.}) 11. Qf2 $16 {[%emt 0:05:08]} Nb6 {[%emt 0:09:01]} (11... Qb4+ $2 12. Bd2 Qe7 13. cxd5 $18) 12. Ba3 {[%emt 0:08:34] [#] White is better.} c5 $146 {[%emt 0:25:40]} ({Predecessor:} 12... Qe6 13. Nd2 Qf5 14. g3 g5 15. Qd4 gxf4 16. Bd3 Qe6 17. Ne4 Bg7 18. gxf4 d6 {1-0 Vargas,M (2075)-Pena Duarte,F (2138) Bogota Distrital 76th 2014 (8)}) 13. Bd3 {[%emt 0:17:58]} (13. Bxc5 d6 14. Ba3 O-O) (13. Nc3 $16) 13... O-O {[%emt 0:06:21]} ({Black should try} 13... f6 $14) 14. O-O {[%emt 0:02:12]} (14. Bxc5 d6 15. Be3 Nd5 $15) (14. Qxc5 Qxc5 15. Bxc5 Bxf4 16. Bxf8 Bxe5 $17) 14... d6 {[%emt 0:01:45] [#]} 15. Nc3 {[%emt 0:03:24]} (15. Be4 $142 $1) 15... Bg7 {[%emt 0:06:28]} ({Better is} 15... f5) 16. Rad1 {[%emt 0:12:09]} ({White should play} 16. Be4) 16... Bb7 {[%emt 0:03:28]} 17. Be4 {[%emt 0:07:43]} Bxe4 {[%emt 0:02:10]} 18. Nxe4 {[%emt 0:00:04]} Nd7 {[%emt 0:02:32]} 19. Rfe1 {[%emt 0:03:00][%cal Re5d6] White is much more active. The black rooks are badly placed.} (19. exd6 $2 Qxe4 20. Bxc5 Nxc5 21. Qxc5 cxd6 22. Qxd6 Rae8 $19) 19... Rfe8 {[%emt 0:05:52]} (19... dxe5 $16 {might work better.} 20. Nxc5 (20. Bxc5 Nxc5 21. Qxc5 Qxc5+ 22. Nxc5 exf4 $11) 20... Rfd8 21. Nxd7 {[%mdl 64] Discovered Attack} Qxa3) 20. exd6 $18 {[%emt 0:02:21]} cxd6 {[%emt 0:00:07]} 21. Rxd6 {[%emt 0:10:10]} Kh8 {[%emt 0:03:23] Black is weak on the light squares} (21... Bc3 {was called for.} 22. Re2 (22. Nxc3 Qxd6 23. Rd1 Qc6 $11) (22. Nf6+ Qxf6 23. Rxe8+ Rxe8 $11) 22... f5) 22. Bb2 {[%emt 0:02:44]} (22. Bxc5 Nxc5 23. Qxc5 f5 $17) 22... f5 {[%emt 0:01:53][%cal Bf7f5,Bf5e4,Be4e3][%mdl 32]} 23. Bxg7+ {[%emt 0:00:20]} Qxg7 {[%emt 0:05:23]} 24. Red1 {[%emt 0:01:34]} (24. Nxc5 $2 Nxc5 25. Rdd1 (25. Rxe8+ $2 Rxe8 26. Qd4 Re1+ 27. Kf2 Qxd4+ 28. Rxd4 Ra1 $19) 25... Ne4 $19) 24... fxe4 {[%emt 0:01:15]} 25. Rxd7 {[%emt 0:00:10]} e3 {[%emt 0:00:29]} 26. Qf3 {[%emt 0:08:24]} Qf6 {[%emt 0:00:57]} 27. R7d3 {[%emt 0:01:55]} (27. Qh3 $6 h5 $18) 27... e2 {[%emt 0:01:11]} 28. Re1 {[%emt 0:00:09]} Qb2 {[%emt 0:01:24]} (28... Rad8 {was worth a try.}) 29. Kf2 {[%emt 0:02:00][%cal Re1e2]} Qxa2 {[%emt 0:00:45]} 30. Rxe2 {[%emt 0:04:12]} Qb1 {[%emt 0:00:13]} (30... Qxe2+ 31. Qxe2 Rxe2+ 32. Kxe2 Rb8) 31. Rde3 $2 {[%emt 0:00:42]} (31. Rd7 {White wants to mate with Qc3+.} Qa1 32. Ree7 Qd4+ 33. Rxd4 cxd4 34. Rxe8+ Rxe8 35. Qd5) 31... Rf8 {[%emt 0:00:40]} 32. Re7 $40 {[%emt 0:01:28][%cal Be3e7,Be7h7,Bh7d7][%mdl 160] [#] Threatening mate with Qc3+. White wants a kill.} Qc1 {[%emt 0:00:23] Prevents Qc3+} (32... Rad8 33. h4 (33. Rxa7 g5 $18) 33... Qd3 34. Rxa7 Qd4+ 35. Kg3 Rde8) 33. g3 {[%emt 0:00:21]} (33. Rxh7+ $142 Kxh7 34. Re7+ Rf7 35. Rxf7+ Kg8 36. Qd5 Qb2+ 37. Kg3) 33... Rad8 {[%emt 0:00:43]} 34. Qb7 {[%emt 0:01:24]} (34. Rxa7 Rfe8 $18) 34... Qa1 {[%emt 0:00:33]} 35. Rxh7+ {[%emt 0:00:28]} ({Much less strong is} 35. Qxa7 Qxa7 36. Rxa7 Ra8 $18) 35... Kg8 {[%emt 0:00:05]} 36. Rd7 {[%emt 0:01:18]} ({Don't do} 36. Qxa7 Qd4+ 37. Kg2 Ra8 $18) 36... Rb8 $2 {[%emt 0:00:31]} (36... Rxd7 $18 37. Qxd7 Qh1) 37. Qd5+ {[%emt 0:00:20] White mates.} Kh8 {[%emt 0:00:17]} 38. Qe6 {[%emt 0:00:41]} Rf5 {[%emt 0:01:12]} 39. Qxg6 {[%emt 0:00:17] Weighted Error Value: White=0.49/Black=0.52} 1-0

[Event "European Women-ch 2023"]
[Site "Petrovac"]
[Date "2023.03.27"]
[Round "9.15"]
[White "Heinemann, Josefine"]
[Black "Sandu, Mihaela"]
[Result "0-1"]
[ECO "C95"]
[WhiteElo "2343"]
[BlackElo "2211"]
[Annotator "TA"]
[PlyCount "72"]
[EventDate "2023.03.15"]
[EventType "swiss"]
[EventCountry "MNE"]
[SourceTitle "playchess.com"]
[Source "ChessBase"]
[SourceQuality "1"]
[TimeControl "40/5400+30:1800+30"]

{[%evp 29,71,28,16,22,35,37,56,60,69,62,57,72,72,73,82,58,68,36,30,26,22,0,20,0,0,-51,-51,-90,-89,-103,-97,-257,-233,-624,-637,-812,-820,-793,-781,-888,-869,-877,-868,-29999]} 1. e4 {[%emt 0:00:04]} e5 {[%emt 0:00:04]} 2. Nf3 {[%emt 0:00:06]} Nc6 {[%emt 0:00:04]} 3. Bb5 {[%emt 0:00:42]} a6 {[%emt 0:00:08]} 4. Ba4 {[%emt 0:00:04]} Nf6 {[%emt 0:00:04]} 5. O-O {[%emt 0:00:10]} Be7 {[%emt 0:00:05]} 6. Re1 {[%emt 0:00:09]} b5 {[%emt 0:00:10]} 7. Bb3 {[%emt 0:00:04]} d6 {[%emt 0:00:04]} 8. c3 {[%emt 0:00:04]} O-O {[%emt 0:00:18]} 9. h3 {[%emt 0:00:18]} Nb8 {[%emt 0:00:06]} 10. d4 {[%emt 0:02:51]} Nbd7 {[%emt 0:00:20]} 11. Nbd2 {[%emt 0:00:39][%cal Bb1d2,Bd2f1,Bf1g3][%mdl 32]} Bb7 {[%emt 0:00:40]} 12. Bc2 {[%emt 0:05:10]} Re8 {[%emt 0:00:18]} 13. Nf1 {[%emt 0:00:15]} Bf8 {[%emt 0:00:36]} 14. Ng3 {[%emt 0:00:08]} g6 {[%emt 0:00:32]} 15. Bd2 {[%emt 0:08:21]} Bg7 {[%emt 0:02:22]} 16. Qc1 {[%emt 0:02:30] [#] C95: Closed Ruy Lopez: Breyer Variation with 10 d4.} Kh8 $146 {[%emt 0:11:34]} ({Predecessor:} 16... d5 17. Bg5 dxe4 18. Bxe4 Bxe4 19. Nxe4 exd4 20. cxd4 Qc8 21. Nxf6+ Nxf6 22. Qc6 Qd7 23. Rxe8+ Qxe8 24. Qxc7 {½-½ Esipenko,A (2682)-Kamsky,G (2655) Biel 55th 2022 (5)}) 17. Bh6 {[%emt 0:05:03]} Ng8 {[%emt 0:01:00]} 18. Bxg7+ {[%emt 0:00:18] White is slightly better.} Kxg7 {[%emt 0:00:04]} 19. Qd2 {[%emt 0:06:27]} Qe7 {[%emt 0:04:47]} 20. a4 {[%emt 0:01:37]} Ngf6 {[%emt 0:14:20]} 21. Qg5 {[%emt 0:08:59] Nf5+ is the strong threat.} Kh8 {[%emt 0:00:28]} 22. h4 {[%emt 0:00:44]} c5 {[%emt 0:07:17]} 23. d5 {[%emt 0:03:56]} c4 {[%emt 0:01:00]} 24. h5 {[%emt 0:04:50]} Nc5 {[%emt 0:07:46]} 25. Kf1 {[%emt 0:06:45]} Rg8 {[%emt 0:13:56]} 26. hxg6 {[%emt 0:03:22]} fxg6 {[%emt 0:01:38]} 27. Ke2 {[%emt 0:01:39]} ({Better is} 27. Ra2 $11) 27... bxa4 $15 {[%emt 0:07:12]} 28. Rh1 {[%emt 0:07:17][%cal Oh1h7] Hoping for Rxh7+!} Rg7 {[%emt 0:02:10]} 29. Rh4 {[%emt 0:06:05]} Rb8 {[%emt 0:02:05]} 30. Qc1 $2 {[%emt 0:05:30] White does not recover from this.} (30. Nf1 $17 {was called for.}) 30... Bc8 $19 {[%emt 0:01:36]} 31. Bxa4 $2 {[%emt 0:03:12]} (31. Rh1) 31... Nd3 {[%emt 0:00:58][%mdl 64] [#] Deflection, Double Attack} 32. Qg5 {[%emt 0:05:10]} Rxb2+ {[%emt 0:01:17]} ({Not} 32... Nxb2 33. Bc2 $17) 33. Nd2 {[%emt 0:00:07]} Nf4+ {[%emt 0:06:52]} 34. Kd1 {[%emt 0:07:16] [#]} N6xd5 $1 {[%emt 0:00:42][%mdl 576] Discovered Attack} 35. Qxe7 {[%emt 0:00:32]} Nxc3+ {[%emt 0:00:06]} (35... Nxe7 $2 {is the wrong capture.} 36. Ne2 $19) 36. Kc1 {[%emt 0:00:03]} Nd3# {[%emt 0:00:08] Ingenious play by Sandu!   Weighted Error Value: White=0.82/Black=0.03 (flawless)} 0-1